fUST/lending_fUST_20240304
["ID","MTS","AMOUNT","RATE_DAILY","PERIOD"]
[316486074,1709505043874,-527.85698207,0.00023998,2]
[316486075,1709505043882,-221.39109471,0.00023998,2]
[316486076,1709505043891,-508.925462,0.00023998,2]
[316486077,1709505043901,-500.0,0.00023998,2]
[316486078,1709505043910,-500.0,0.00023998,2]
[316486079,1709505043919,-535.7623023,0.00023998,2]
[316486080,1709505043928,-500.0,0.00023998,2]
[316486081,1709505043937,-201.81453657,0.00023998,2]
[316486082,1709505043946,-250.0,0.00023999,7]
[316486083,1709505043955,-250.0,0.00023999,14]
[316486084,1709505043963,-926.63622867,0.00023999,2]
[316486085,1709505043972,-587.56,0.00023999,2]
[316486086,1709505043981,-587.56,0.00023999,2]
[316486087,1709505043990,-587.56,0.00023999,2]
[316486088,1709505043998,-587.56,0.00023999,2]
[316486089,1709505044008,-587.56,0.00023999,2]
[316486090,1709505044016,-587.56,0.00023999,2]
[316486091,1709505044025,-587.56,0.00023999,2]
[316486092,1709505044034,-500.0,0.00023999,2]
[316486093,1709505044043,-500.0,0.00023999,2]
[316486094,1709505044052,-235.79021883,0.00023999,2]
[316486095,1709505044061,-587.59,0.00023999,2]
[316486096,1709505044070,-500.0,0.00023999,2]
[316486097,1709505044079,-500.0,0.00023999,2]
[316486098,1709505044087,-500.0,0.00023999,2]
[316486099,1709505044096,-500.0,0.00023999,2]
[316486100,1709505044105,-482.0,0.00023999,2]
[316486101,1709505044114,-500.0,0.00023999,2]
[316486102,1709505044123,-500.0,0.00023999,2]
[316486103,1709505044132,-500.0,0.00023999,2]
[316486104,1709505044141,-448.18,0.00023999,2]
[316486105,1709505044151,-500.0,0.00023999,2]
[316486106,1709505044160,-133938.12699432,0.00024,5]
[316486107,1709505044171,-264.46625028,0.00024,5]
[316486121,1709505046137,-256.70483535,0.00023998,2]
[316486127,1709505046202,-1044.59452816,0.00023998,2]
[316486129,1709505046211,-1781.85027784,0.00024,5]
[316486136,1709505046317,-716.68924705,0.00024,5]
[316486137,1709505046327,-1533.16044773,0.00024,5]
[316486138,1709505046338,-3001.418,0.00024,5]
[316486156,1709506025176,-186.30267479,0.00021798,2]
[316486157,1709506025199,-156.6342593,0.00021799,2]
[316486158,1709506025221,-60.76992591,0.00021894,2]
[316487059,1709506241296,-460.35766248,0.00019794,2]
[316487060,1709506241306,-186.30267479,0.00021819,2]
[316487061,1709506241317,-170.264845,0.0002182,2]
[316487062,1709506241326,-1880.09255001,0.00021899,2]
[316487063,1709506241336,-228.383965,0.00022164,2]
[316487064,1709506241345,-180.622579,0.00022696,2]
[316487065,1709506241355,-384.25085743,0.00022816,2]
[316487258,1709506243349,-528.31897966,0.00022816,2]
[316487259,1709506243359,-293.60861708,0.00023,2]
[316487260,1709506243368,-200.79409045,0.00023012,5]
[316487261,1709506243378,-1313.41194402,0.000239,2]
[316487262,1709506243387,-367.21099764,0.00023995,2]
[316487264,1709506243396,-216.02801894,0.00023995,2]
[316487266,1709506243405,-503.55455983,0.00023995,2]
[316487267,1709506243414,-460.86714912,0.00023995,2]
[316487269,1709506243423,-500.0,0.00023995,2]
[316487271,1709506243432,-500.0,0.00023995,2]
[316487273,1709506243441,-500.0,0.00023995,2]
[316487275,1709506243450,-500.0,0.00023995,2]
[316487277,1709506243461,-500.0,0.00023995,2]
[316487278,1709506243471,-304.7,0.00023995,2]
[316487280,1709506243480,-500.0,0.00023995,2]
[316487282,1709506243489,-500.0,0.00023995,2]
[316487283,1709506243498,-407.6297129,0.00023995,2]
[316487284,1709506243507,-503.24699288,0.00023995,2]
[316487285,1709506243516,-500.0,0.00023995,2]
[316487286,1709506243525,-500.0,0.00023995,2]
[316487287,1709506243535,-500.0,0.00023995,2]
[316487288,1709506243544,-352.12011432,0.00023995,2]
[316487289,1709506243553,-500.0,0.00023995,2]
[316487290,1709506243562,-500.0,0.00023995,2]
[316487291,1709506243571,-20179.19217358,0.00023996,5]
[316487292,1709506243584,-933.03125086,0.00023996,5]
[316487313,1709507231118,-186.30267479,0.00019177,2]
[316487314,1709507231139,-170.264845,0.00019178,2]
[316487315,1709507231159,-154.9690062,0.00019344,2]
[316487316,1709507231179,-1880.09255001,0.00019344,2]
[316487317,1709507231199,-226.25903,0.00019347,2]
[316487318,1709507231219,-24900.0,0.00019916,2]
[316487319,1709507231238,-5527.67710713,0.0002,2]
[316487320,1709507231256,-238.61676339,0.0002,2]
[316487321,1709507231276,-170.264845,0.00021422,2]
[316487322,1709507231294,-20847.2726254,0.00021557,2]
[316487323,1709507231314,-500.0,0.00021558,2]
[316487324,1709507231334,-500.0,0.00021558,2]
[316487325,1709507231368,-500.0,0.00021558,2]
[316487326,1709507231392,-500.0,0.00021558,2]
[316487327,1709507231413,-502.04463839,0.00021558,2]
[316487328,1709507231433,-500.0,0.00021558,2]
[316487329,1709507231459,-500.0,0.00021558,2]
[316487330,1709507231479,-500.0,0.00021558,2]
[316487331,1709507231500,-170.67,0.00021558,2]
[316487332,1709507231521,-500.0,0.00021558,2]
[316487333,1709507231543,-171.98198108,0.00021558,2]
[316487334,1709507231565,-306.90510832,0.00021896,2]
[316487335,1709507231585,-10534.16363754,0.00022392,2]
[316487336,1709507231609,-500.0,0.00022999,2]
[316487337,1709507231629,-500.0,0.00022999,2]
[316487338,1709507231649,-509.10813703,0.00022999,2]
[316487339,1709507231672,-500.0,0.00022999,2]
[316487340,1709507231692,-464.49,0.00022999,2]
[316487341,1709507231712,-18702.91582631,0.00023,2]
[316487342,1709507231732,-2314.87772813,0.00023,2]
[316487343,1709507231753,-324.89528135,0.00023012,5]
[316487344,1709507231773,-649.25696897,0.000237,2]
[316487345,1709507231794,-169.5094521,0.00023897,2]
[316487346,1709507231814,-2614.44926691,0.000239,2]
[316487347,1709507231833,-2614.44926682,0.00023987,2]
[316487348,1709507231854,-500.0,0.00023995,2]
[316487349,1709507231874,-500.0,0.00023995,2]
[316487350,1709507231894,-362.77,0.00023995,2]
[316487351,1709507231914,-500.0,0.00023995,2]
[316487352,1709507231935,-500.0,0.00023995,2]
[316487353,1709507231955,-500.0,0.00023995,2]
[316487354,1709507231975,-500.0,0.00023995,2]
[316487355,1709507231998,-500.0,0.00023995,2]
[316487356,1709507232017,-56217.65684784,0.00023996,5]
[316487357,1709507232037,-500.0,0.00023997,2]
[316487358,1709507232057,-500.0,0.00023997,2]
[316487359,1709507232077,-500.0,0.00023997,2]
[316487360,1709507232100,-251.89074075,0.00023997,2]
[316487361,1709507232120,-155.06047358,0.00023998,2]
[316487362,1709507232140,-400.0,0.00023998,2]
[316487363,1709507232165,-155.05737123,0.00023998,2]
[316487364,1709507232184,-154.98450155,0.00023998,2]
[316487365,1709507232204,-154.98450155,0.00023998,2]
[316487366,1709507232224,-26267.34509652,0.00023998,2]
[316487367,1709507232243,-500.0,0.00023998,2]
[316487368,1709507232263,-155.05892239,0.00023998,2]
[316487369,1709507232284,-309.60917257,0.00023998,2]
[316487370,1709507232304,-15663.77249092,0.00023998,2]
[316487371,1709507232325,-151.489946,0.00023998,2]
[316487372,1709507232346,-352.29919,0.00023998,2]
[316487373,1709507232366,-352.29919,0.00023998,2]
[316487374,1709507232386,-352.29919,0.00023998,2]
[316487375,1709507232411,-352.29919,0.00023998,2]
[316487376,1709507232431,-500.0,0.00023998,2]
[316487377,1709507232451,-151.0,0.00023998,2]
[316487378,1709507232471,-151.0,0.00023998,2]
[316487379,1709507232491,-4094.67147,0.00023998,2]
[316487380,1709507232511,-4094.67147,0.00023998,2]
[316487381,1709507232532,-4094.67147,0.00023998,2]
[316487382,1709507232554,-4094.67147,0.00023998,2]
[316487383,1709507232573,-151.0,0.00023998,2]
[316487384,1709507232714,-151.0,0.00023998,2]
[316487385,1709507232736,-151.0,0.00023998,2]
[316487386,1709507232759,-200.001266,0.00023998,2]
[316487387,1709507232780,-488.458437,0.00023998,2]
[316487388,1709507232800,-488.458437,0.00023998,2]
[316487389,1709507232820,-488.458437,0.00023998,2]
[316487390,1709507232841,-488.458437,0.00023998,2]
[316487391,1709507232866,-488.458437,0.00023998,2]
[316487392,1709507232885,-488.458437,0.00023998,2]
[316487393,1709507232906,-185.922558,0.00023998,2]
[316487394,1709507232926,-185.922558,0.00023998,2]
[316487395,1709507232946,-185.922558,0.00023998,2]
[316487396,1709507232966,-185.922558,0.00023998,2]
[316487397,1709507232987,-185.922558,0.00023998,2]
[316487398,1709507233007,-185.922558,0.00023998,2]
[316487399,1709507233027,-220.909835,0.00023998,2]
[316487400,1709507233046,-151.0,0.00023998,2]
[316487401,1709507233067,-151.0,0.00023998,2]
[316487402,1709507233087,-151.0,0.00023998,2]
[316487403,1709507233110,-15234.87744507,0.00023999,2]
[316487404,1709507233131,-500.0,0.00023999,2]
[316487405,1709507233151,-500.0,0.00023999,2]
[316487406,1709507233171,-500.0,0.00023999,2]
[316487407,1709507233190,-500.0,0.00023999,2]
[316487408,1709507233210,-619.13016707,0.00023999,2]
[316487409,1709507233230,-525.7525633,0.00023999,2]
[316487410,1709507233250,-405.76512445,0.00023999,2]
[316487411,1709507233270,-500.0,0.00023999,2]
[316487412,1709507233290,-500.0,0.00023999,2]
[316487413,1709507233310,-524.79055611,0.00023999,2]
[316487414,1709507233330,-151.199755,0.00023999,2]
[316487415,1709507233352,-352.29919,0.00023999,2]
[316487416,1709507233372,-352.29919,0.00023999,2]
[316487417,1709507233396,-471.11701926,0.00023999,2]
[316487418,1709507233416,-151.0,0.00023999,2]
[316487419,1709507233439,-4094.67147,0.00023999,2]
[316487420,1709507233461,-4094.67147,0.00023999,2]
[316487421,1709507233483,-151.0,0.00023999,2]
[316487422,1709507233503,-488.458437,0.00023999,2]
[316487423,1709507233523,-488.458437,0.00023999,2]
[316487424,1709507233544,-500.0,0.00023999,2]
[316487425,1709507233567,-498.0,0.00023999,2]
[316487426,1709507233587,-185.922558,0.00023999,2]
[316487427,1709507233609,-185.922558,0.00023999,2]
[316487428,1709507233628,-185.922558,0.00023999,2]
[316487429,1709507233648,-185.922558,0.00023999,2]
[316487430,1709507233668,-151.169752,0.00023999,2]
[316487431,1709507233689,-36532.44430597,0.00024,5]
[316487432,1709507233759,-82204.23192,0.00024,5]
[316487434,1709507247141,-151.0,0.00023996,2]
[316487435,1709507247161,-299.067643,0.00023996,2]
[316487436,1709507247181,-151.0,0.00023998,2]
[316487437,1709507247201,-151.0,0.00023998,2]
[316487438,1709507247221,-151.0,0.00023998,2]
[316487439,1709507247240,-155.14573637,0.00023999,2]
[316487440,1709507247260,-186.30267479,0.00023999,2]
[316487441,1709507247279,-151.0,0.00023999,2]
[316487442,1709507247298,-151.0,0.00023999,2]
[316487443,1709507247319,-15970.42967584,0.00024,5]
[316487669,1709507433892,-500.0,0.00021558,2]
[316487671,1709507433902,-186.30267479,0.00021899,2]
[316487673,1709507433912,-204.60340554,0.000219,2]
[316487675,1709507433921,-346.1471541,0.00022873,2]
[316487677,1709507433930,-500.0,0.00022999,2]
[316487679,1709507433939,-500.0,0.00023995,2]
[316487681,1709507433948,-246.609433,0.00023996,2]
[316487683,1709507433957,-246.609433,0.00023996,2]
[316487685,1709507433966,-500.0,0.00023997,2]
[316487687,1709507433975,-500.0,0.00023997,2]
[316487689,1709507433984,-246.609433,0.00023998,2]
[316487691,1709507433994,-246.609433,0.00023998,2]
[316487693,1709507434005,-246.609433,0.00023998,2]
[316487695,1709507434015,-246.609433,0.00023998,2]
[316487697,1709507434024,-246.609433,0.00023998,2]
[316487699,1709507434033,-246.609433,0.00023998,2]
[316487701,1709507434042,-246.609433,0.00023999,2]
[316487703,1709507434051,-246.609433,0.00023999,2]
[316487704,1709507434060,-246.609433,0.00023999,2]
[316487706,1709507434068,-246.609433,0.00023999,2]
[316487708,1709507434077,-342.43900113,0.00023999,2]
[316487710,1709507434086,-1584.99755232,0.00024,5]
[316487713,1709507434097,-471.3471541,0.00024,5]
[316488356,1709507441555,-430.16084935,0.00024,5]
[316488373,1709507441707,-82204.23192,0.00024,5]
[316488856,1709507446592,-500.0,0.00024,5]
[316488859,1709507446606,-299244.99163,0.00024,5]
[316488865,1709507446653,-17516.94573,0.00024,5]
[316489403,1709508443140,-186.30267479,0.00021896,2]
[316489404,1709508443161,-1880.09255001,0.00021896,2]
[316489405,1709508443180,-150.0,0.000219,2]
[316489406,1709508443200,-1103.5847852,0.00022692,2]
[316489429,1709508632768,-238.61676339,0.00020591,2]
[316489430,1709508632779,-333.75174447,0.00020592,2]
[316489431,1709508632792,-1880.09255001,0.00022691,2]
[316489432,1709508632802,-2868.58938495,0.00022692,2]
[316489433,1709508632811,-19697.9402937,0.00022692,2]
[316489434,1709508632821,-225.196562,0.00022695,2]
[316489435,1709508632831,-160.1207913,0.0002336,2]
[316489436,1709508632840,-1000.0,0.00023855,2]
[316489437,1709508632849,-1000.0,0.00023872,2]
[316489438,1709508632859,-1000.0,0.00023889,2]
[316489439,1709508632868,-1000.0,0.00023907,2]
[316489440,1709508632879,-1000.0,0.00023924,2]
[316489441,1709508632888,-1000.0,0.00023941,2]
[316489442,1709508632897,-1000.0,0.00023959,2]
[316489444,1709508632907,-1000.0,0.00023976,2]
[316489446,1709508632916,-1000.0,0.00023993,2]
[316489449,1709508632926,-339.0154947,0.00023998,2]
[316489450,1709508632935,-500.0,0.00023999,2]
[316489451,1709508632944,-500.0,0.00023999,2]
[316489452,1709508632954,-501.97279534,0.00023999,2]
[316489454,1709508632964,-500.0,0.00023999,2]
[316489456,1709508632973,-515.0,0.00023999,2]
[316489458,1709508632982,-508.53966518,0.00023999,2]
[316489460,1709508632992,-500.0,0.00023999,2]
[316489462,1709508633001,-500.0,0.00023999,2]
[316489464,1709508633011,-500.0,0.00023999,2]
[316489466,1709508633020,-254701.97381517,0.00024,5]
[316489468,1709508633031,-155.25689632,0.00024,2]
[316489470,1709508633040,-301.0,0.00024,2]
[316489472,1709508633051,-174.0,0.00024,2]
[316489474,1709508633060,-175.5,0.00024,2]
[316489475,1709508633070,-302.0,0.00024,2]
[316489476,1709508633079,-500.0,0.00024,2]
[316489477,1709508633087,-500.0,0.00024,2]
[316489478,1709508633096,-403.0,0.00024,2]
[316489479,1709508633105,-300.0,0.00024,11]
[316489480,1709508633114,-500.0,0.00024,2]
[316489481,1709508633123,-150.0,0.00024,30]
[316489482,1709508633132,-150.0,0.00024,2]
[316489483,1709508633141,-581.0,0.00024,2]
[316489484,1709508633151,-580.2842,0.00024,2]
[316489485,1709508633160,-580.2842,0.00024,2]
[316489486,1709508633170,-1000.0,0.00024011,2]
[316489487,1709508633179,-1000.0,0.00024028,2]
[316489488,1709508633188,-1000.0,0.00024046,2]
[316489489,1709508633197,-1000.0,0.00024063,2]
[316489490,1709508633206,-1000.0,0.0002408,2]
[316489491,1709508633217,-1000.0,0.00024098,2]
[316489492,1709508633226,-1000.0,0.00024115,2]
[316489493,1709508633236,-1000.0,0.00024132,2]
[316489494,1709508633245,-1000.0,0.0002415,2]
[316489495,1709508633254,-1000.0,0.00024167,2]
[316489496,1709508633264,-1000.0,0.00024185,2]
[316489497,1709508633273,-1000.0,0.00024202,2]
[316489498,1709508633283,-1000.0,0.00024219,2]
[316489499,1709508633293,-1000.0,0.00024237,2]
[316489500,1709508633302,-1000.0,0.00024254,2]
[316489501,1709508633312,-1000.0,0.00024271,2]
[316489502,1709508633322,-2000.0,0.00024275,2]
[316489503,1709508633331,-1000.0,0.00024289,2]
[316489504,1709508633341,-1509.720264,0.00024306,2]
[316489505,1709508633351,-2000.0,0.00024508,30]
[316489506,1709508633360,-2900.0,0.00024658,3]
[316489507,1709508633372,-200.0,0.00024658,2]
[316489508,1709508633381,-380.0,0.00024658,2]
[316489509,1709508633391,-20915.59413456,0.00024673,2]
[316489510,1709508633400,-165.287405,0.0002468,2]
[316489511,1709508633409,-301.10960087,0.00024772,2]
[316489512,1709508633418,-500.0,0.00024772,2]
[316489513,1709508633427,-500.0,0.00024772,2]
[316489514,1709508633437,-500.0,0.00024772,2]
[316489516,1709508633446,-500.0,0.00024772,2]
[316489518,1709508633456,-323.26288329,0.00024772,2]
[316489519,1709508633466,-500.0,0.00024772,2]
[316489520,1709508633475,-359.57377645,0.00024772,2]
[316489521,1709508633485,-500.0,0.00024772,2]
[316489522,1709508633494,-500.0,0.00024772,2]
[316489523,1709508633504,-500.0,0.00024772,2]
[316489524,1709508633513,-500.0,0.00024772,2]
[316489525,1709508633523,-500.0,0.00024772,2]
[316489526,1709508633534,-600.0,0.00024772,2]
[316489527,1709508633543,-500.0,0.00024772,2]
[316489528,1709508633552,-500.0,0.00024772,2]
[316489529,1709508633562,-500.0,0.00024772,2]
[316489530,1709508633571,-291.01446301,0.00024772,2]
[316489531,1709508633581,-500.0,0.00024772,2]
[316489532,1709508633590,-500.0,0.00024772,2]
[316489533,1709508633599,-500.0,0.00024772,2]
[316489534,1709508633609,-500.0,0.00024772,2]
[316489535,1709508633618,-500.0,0.00024772,2]
[316489536,1709508633627,-500.0,0.00024772,2]
[316489537,1709508633636,-500.0,0.00024772,2]
[316489538,1709508633645,-435.09571139,0.00024772,2]
[316489539,1709508633655,-500.0,0.00024772,2]
[316489540,1709508633664,-500.0,0.00024772,2]
[316489541,1709508633673,-500.0,0.00024772,2]
[316489542,1709508633682,-610.83527414,0.00024772,2]
[316489543,1709508633691,-500.0,0.00024772,2]
[316489544,1709508633700,-500.0,0.00024772,2]
[316489545,1709508633709,-500.0,0.00024772,2]
[316489546,1709508633718,-500.0,0.00024772,2]
[316489547,1709508633727,-500.0,0.00024772,2]
[316489548,1709508633736,-500.0,0.00024772,2]
[316489549,1709508633745,-500.0,0.00024772,2]
[316489550,1709508633755,-500.0,0.00024772,2]
[316489551,1709508633764,-500.0,0.00024772,2]
[316489552,1709508633778,-500.0,0.00024772,2]
[316489553,1709508633788,-500.0,0.00024772,2]
[316489554,1709508633798,-500.0,0.00024772,2]
[316489555,1709508633807,-181.63257427,0.00024772,2]
[316489556,1709508633817,-500.0,0.00024772,2]
[316489557,1709508633827,-500.0,0.00024772,2]
[316489558,1709508633836,-1390.50466386,0.00024772,2]
[316489559,1709508633845,-151.0,0.00024773,2]
[316489560,1709508633854,-234.833333,0.00024773,2]
[316489561,1709508633972,-293.075062,0.00024773,2]
[316489562,1709508633982,-293.075062,0.00024773,2]
[316489563,1709508633991,-293.075062,0.00024773,2]
[316489564,1709508634000,-293.075062,0.00024773,2]
[316489565,1709508634009,-293.075062,0.00024773,2]
[316489566,1709508634018,-293.075062,0.00024773,2]
[316489567,1709508634028,-293.075062,0.00024773,2]
[316489568,1709508634037,-293.075062,0.00024773,2]
[316489569,1709508634046,-293.075062,0.00024773,2]
[316489570,1709508634055,-293.075062,0.00024773,2]
[316489571,1709508634065,-293.075062,0.00024773,2]
[316489572,1709508634073,-293.075062,0.00024773,2]
[316489573,1709508634083,-293.075062,0.00024773,2]
[316489574,1709508634092,-293.075062,0.00024773,2]
[316489575,1709508634101,-293.075062,0.00024773,2]
[316489576,1709508634110,-293.075062,0.00024773,2]
[316489577,1709508634120,-293.075062,0.00024773,2]
[316489578,1709508634129,-293.075062,0.00024773,2]
[316489579,1709508634138,-293.075062,0.00024773,2]
[316489580,1709508634146,-293.075063,0.00024773,2]
[316489581,1709508634156,-151.0,0.00024773,2]
[316489582,1709508634165,-151.0,0.00024773,2]
[316489583,1709508634174,-151.0,0.00024773,2]
[316489584,1709508634183,-151.0,0.00024773,2]
[316489585,1709508634192,-151.0,0.00024773,2]
[316489586,1709508634202,-151.0,0.00024773,2]
[316489587,1709508634211,-151.0,0.00024773,2]
[316489588,1709508634220,-151.0,0.00024773,2]
[316489589,1709508634229,-151.0,0.00024773,2]
[316489590,1709508634238,-151.0,0.00024773,2]
[316489591,1709508634246,-151.0,0.00024773,2]
[316489592,1709508634256,-151.0,0.00024773,2]
[316489593,1709508634265,-151.0,0.00024773,2]
[316489594,1709508634275,-151.0,0.00024773,2]
[316489595,1709508634284,-151.0,0.00024773,2]
[316489596,1709508634293,-151.0,0.00024773,2]
[316489597,1709508634302,-160.875471,0.00024773,2]
[316489598,1709508634311,-151.0,0.00024773,2]
[316489599,1709508634321,-151.0,0.00024773,2]
[316489600,1709508634330,-151.0,0.00024773,2]
[316489601,1709508634339,-151.0,0.00024773,2]
[316489602,1709508634348,-151.0,0.00024773,2]
[316489603,1709508634358,-151.0,0.00024773,2]
[316489604,1709508634367,-151.0,0.00024773,2]
[316489605,1709508634376,-151.0,0.00024773,2]
[316489606,1709508634385,-151.0,0.00024773,2]
[316489607,1709508634394,-151.0,0.00024773,2]
[316489608,1709508634404,-151.0,0.00024773,2]
[316489609,1709508634413,-198.225583,0.00024773,2]
[316489610,1709508634422,-151.0,0.00024773,2]
[316489611,1709508634431,-151.0,0.00024773,2]
[316489612,1709508634440,-198.525969,0.00024773,2]
[316489613,1709508634449,-2923.355609,0.00024773,2]
[316489614,1709508634458,-2923.355609,0.00024773,2]
[316489615,1709508634467,-298414.3387987,0.00024773,30]
[316489616,1709508634476,-123055.95053608,0.00024773,30]
[316489635,1709508638792,-2830.94893721,0.00024773,2]
[316489652,1709508641628,-92.40667179,0.00024773,2]
[316489654,1709508641638,-2923.355609,0.00024773,2]
[316489656,1709508641647,-456.98479132,0.00024773,2]
[316489980,1709508842082,-500.0,0.00024773,120]
[316489981,1709508842106,-899500.0,0.00024773,60]
[316489982,1709508846029,-900000.0,0.00024773,60]
[316489989,1709509573401,-900000.0,0.00024788,60]
[316489990,1709509576800,-125515.08555701,0.00024788,60]
[316489991,1709509576822,-381.44252921,0.00024788,120]
[316489992,1709509576845,-3993.69592703,0.00024788,120]
[316489993,1709509576869,-770109.77598675,0.00024788,60]
[316489994,1709509636202,-155.00775039,0.00019078,2]
[316489995,1709509636222,-186.30267479,0.00019079,2]
[316489996,1709509636243,-62.39643482,0.0001908,2]
[316489998,1709509748142,-300.0,0.00019079,2]
[316489999,1709509748164,-1817.69611519,0.0001908,2]
[316490000,1709509748184,-15932.10569437,0.0001908,2]
[316490001,1709509748204,-6344.63970714,0.00019081,2]
[316490050,1709509831966,-102.03818406,0.00019081,2]
[316490052,1709509831975,-238.61676339,0.0002,2]
[316490054,1709509831984,-54.04868224,0.00020042,2]
[316490641,1709509837860,-4736.35025036,0.00020042,2]
[316490647,1709509837917,-6929.5281615,0.00020042,2]
[316490932,1709509840896,-9127.3455313,0.00020042,2]
[316490934,1709509840906,-14069.6666936,0.00020043,2]
[316491340,1709509846042,-7959.35240228,0.00020043,2]
[316491357,1709510122582,-317.44523282,0.00019204,2]
[316491359,1709510141127,-1880.09255001,0.00019205,2]
[316491360,1709510141148,-186.30267479,0.00019205,2]
[316491361,1709510210282,933.6047752,0.00019014,2]
[316491362,1709510210303,2066.3952248,0.00019014,2]
[316491363,1709510231877,933.6047752,0.00019205,2]
[316491364,1709510251299,166.666666,0.00019178,2]
[316491366,1709510271806,1515.88810118,0.00019204,2]
[316491367,1709510271827,2000.0,0.00019204,2]
[316491369,1709510289077,3141.19599029,0.00019113,2]
[316491372,1709510302244,1504.839667,0.00018555,2]
[316491373,1709510303960,-7400.0,0.00019114,2]
[316491374,1709510304972,6353.96434271,0.00019113,2]
[316491376,1709510309327,613.5835545,0.00018485,2]
[316491378,1709510348795,24900.0,0.00018392,2]
[316491381,1709510355874,769.110281,0.00018392,2]
[316491676,1709510453949,44965.5637083,0.00018129,2]
[316491681,1709510555439,2106.6833838,0.0001811,2]
[316491682,1709510615235,1058.0546402,0.00018113,2]
[316491683,1709510638866,3000.0,0.0001811,2]
[316491684,1709510674789,270.2865101,0.0001839,2]
[316491687,1709510701870,166.46955672,0.00018797,2]
[316491690,1709510754546,186.30267479,0.0001889,2]
[316491691,1709510763205,155.02170304,0.0001889,2]
[316491692,1709510764480,300.0,0.0001889,2]
[316491693,1709510774324,11338.92398755,0.0001889,2]
[316491694,1709510774356,3900.7719877,0.0001889,2]
[316491695,1709510775145,535.7623023,0.0001889,2]
[316491696,1709510776616,58034.66861435,0.0001889,2]
[316491697,1709510791176,3141.19599029,0.0001889,2]
[316491699,1709510805704,3929.0277896,0.00018697,2]
[316491703,1709510857630,1880.09255001,0.0001889,2]
[316491706,1709510869124,24900.0,0.00018548,2]
[316491707,1709510869937,317.44523282,0.0001889,2]
[316491713,1709510936013,384.55514,0.00018773,2]
[316491714,1709510944554,300.0,0.0001889,2]
[316491777,1709511032158,-15932.10569437,0.00018891,2]
[316491779,1709511032167,-1693.10320213,0.000189,2]
[316491781,1709511032176,-166.509718,0.00019178,2]
[316491783,1709511032187,-166.666666,0.00019178,2]
[316491785,1709511032199,-168.419548,0.00019178,2]
[316491787,1709511032210,-172.303322,0.00019388,2]
[316491790,1709511032222,-166.666666,0.00019627,2]
[316491792,1709511032233,-24563.40623171,0.0002,2]
[316491794,1709511032244,-5527.67710713,0.0002,2]
[316491796,1709511032256,-2204.9405307,0.0002,2]
[316491798,1709511032267,-301.93092772,0.0002,2]
[316491800,1709511032276,-238.61676339,0.0002,2]
[316491802,1709511032288,-166.666666,0.00020076,2]
[316491803,1709511032299,-325.25546965,0.00020147,2]
[316491804,1709511032310,-165.27283881,0.00020447,2]
[316491805,1709511032322,-166.666666,0.00020524,2]
[316491806,1709511032333,-260.46,0.00020537,3]
[316491807,1709511032344,-781.39,0.00020537,3]
[316491808,1709511032356,-500.0,0.00020547,2]
[316491809,1709511032367,-290.93795826,0.00020547,2]
[316491810,1709511032377,-500.0,0.00020547,2]
[316491811,1709511032388,-500.0,0.00020547,2]
[316491812,1709511032399,-500.39180037,0.00020547,2]
[316491813,1709511032411,-500.0,0.00020547,2]
[316491814,1709511032421,-500.0,0.00020547,2]
[316491815,1709511032432,-500.0,0.00020547,2]
[316491816,1709511032442,-500.0,0.00020547,2]
[316491817,1709511032451,-501.88399839,0.00020547,2]